Cogmind - Beta 16 @@@ ROGUE MODE // 2026.01.17 @ 21:04:54 Player: Artackni Result: Destroyed by S-27 Virus with Autogun Performance ------------- Evolutions (3) 1500 Regions Visited (10) 2000 Robots Destroyed (159) 795 Value Destroyed (6389) 6389 Prototype IDs (27) 540 Alien Tech Used (0) 0 Bonus (4688) 4688 TOTAL SCORE: 15912 Bonus ------- High Alert Combat Kills 1311 Follower Combat Kills 977 Entered Garrisons 600 Used RIF Installer 1500 Aligned with FarCom 300 Cogmind --------- Core Integrity 0/700 Matter 285/300 Energy 310/310 System Corruption 17% Temperature Cool (0) Movement Rolling (160) Ox6 Location -7/Garrison Parts ------- > --- POWER (1) -------- Heavy Deuterium Engine > --- PROPULSION (3) --- Wheel Wheel > --- UTILITY (5) ------ Huge Storage Unit Improved Melee Analysis Suite Actuator Array Layered Light Armor Plating Medium Reactive Plating > --- WEAPON (4) ------- Powered Hammer Powered Hammer Powered Hammer Ripper > --- INVENTORY (25) --- Hybrid Antimatter Reactor Improved Melee Analysis Suite Target Analyzer Armor Integrity Analyzer Microactuators Phase Shifter Hardlight Generator Hacking Suite Relay Coupler [NC] (33) Relay Coupler [NC] (33) Relay Coupler [Grunt] (25) Relay Coupler [Sentry] (22) Relay Coupler [Hunter] (13) Bore Cannon Improved Datajack Remote Datajack Remote Datajack Field Lobotomy Kit (5) Great Maul Powered Hammer Peak State ------------ > --- POWER ------------ Heavy Deuterium Engine > --- PROPULSION ------- Wheel Armored Huge Wheel > --- UTILITY ---------- Huge Storage Unit Gravity Neutralizer Improved Melee Analysis Suite Hardlight Generator Relay Coupler [Swarmer] > --- WEAPON ----------- Power Sword Power Sword Power Sword Power Sword > --- INVENTORY -------- Reinforced Deuterium Engine Heavy Deuterium Engine Heavy Deuterium Engine Light Fission Core Wheel Wheel Wheel Wheel Wheel Armor Integrity Analyzer Microactuators Phase Shifter Improved Light Armor Plating Focal Shield Hacking Suite Relay Coupler [NC] Relay Coupler [Duelist] Relay Coupler [Sentry] Bore Cannon Improved Datajack Remote Datajack Field Lobotomy Kit Powered Hammer Powered Hammer Powered Hammer [Rating: 60] Favorites ----------- Power Heavy Deuterium Engine Engine Heavy Deuterium Engine Power Core Enhanced Nuclear Core Propulsion Wheel Treads Light Treads Leg Advanced VSS Leg Wheel Wheel Utility Huge Storage Unit Device Actuator Array Storage Huge Storage Unit Processor Improved Melee Analysis Suite Hackware Relay Coupler [NC] Protection Layered Light Armor Plating Weapon Powered Hammer Energy Gun Medium Laser Ballistic Gun Light Assault Rifle Ballistic Cannon Bore Cannon Special Weapon Remote Datajack Impact Weapon Powered Hammer Slashing Weapon Power Sword Special Melee Weapon Datajack Build | -11 -10 -10 -10 -9 -8 -8 -7 -7 -7 -7 ------- Run | Yrd Mat Min Exi Min Mat Gar Fac Gar Fac Gar Slots Evolved 6 | . . . . . 4 . 2 . . . Power . | . . . . . . . . . . . Propulsion 1 | . . . . . . . 1 . . . Utility 3 | . . . . . 2 . 1 . . . Weapon 2 | . . . . . 2 . . . . . Parts Attached 96 | 8 7 1 . 2 15 11 10 13 22 7 Power 10 | 1 . . . 1 1 1 1 1 3 1 Engine 9 | 1 . . . 1 1 1 1 1 2 1 Core 1 | . . . . . . . . . 1 . Reactor . | . . . . . . . . . . . Propulsion 31 | 3 1 . . 1 . 4 3 5 10 4 Treads 3 | 1 1 . . . . 1 . . . . Leg 2 | . . . . . . . . . 2 . Wheel 26 | 2 . . . 1 . 3 3 5 8 4 Hover . | . . . . . . . . . . . Flight . | . . . . . . . . . . . Utility 30 | 2 2 . . . 6 2 3 6 7 2 Device 9 | 1 . . . . 3 2 1 1 1 . Storage 4 | 1 2 . . . . . . . 1 . Processor 3 | . . . . . . . 1 1 1 . Hackware 6 | . . . . . . . 1 3 2 . Protection 8 | . . . . . 3 . . 1 2 2 Artifact . | . . . . . . . . . . . Weapon 25 | 2 4 1 . . 8 4 3 1 2 . Energy Gun 4 | . 4 . . . . . . . . . Energy Cannon . | . . . . . . . . . . . Ballistic Gun 3 | 2 . . . . 1 . . . . . Ballistic Cannon 1 | . . . . . 1 . . . . . Launcher . | . . . . . . . . . . . Special Weapon 1 | . . . . . . . . 1 . . Impact Weapon 10 | . . . . . 6 . 3 . 1 . Slashing Weapon 5 | . . . . . . 4 . . 1 . Piercing Weapon . | . . . . . . . . . . . Special Melee Weapon 1 | . . 1 . . . . . . . . Unidentified Prototypes 3 | . . . . . . . 1 1 1 . Parts Lost 34 | . . . . 2 . 8 2 8 5 9 Power 3 | . . . . 1 . 1 . . . 1 Propulsion 19 | . . . . 1 . 3 2 5 3 5 Utility 8 | . . . . . . 3 . 2 1 2 Weapon 4 | . . . . . . 1 . 1 1 1 Highest Loss Streak 6 | . . . . 2 . 5 1 6 2 4 To Critical Strikes 2 | . . . . . . . . . 1 1 Average Backups 22 | 2 9 11 13 16 23 24 24 24 24 22 Power 3 | . 1 1 2 2 2 4 4 4 3 1 Propulsion 3 | 1 5 6 6 5 5 4 2 2 4 1 Utility 7 | . . 2 2 3 5 6 9 10 9 12 Weapon 4 | . . 1 1 2 8 7 5 4 3 2 Tool/Special . | . . . . . . . . . . . Unused Backups 40 | . . . . . 6 2 7 3 6 16 Power 6 | . . . . . . . 2 . 3 1 Propulsion 3 | . . . . . 3 . . . . . Utility 19 | . . . . . 1 1 1 3 3 10 Weapon 7 | . . . . . 2 1 3 . . 1 Tool/Special 5 | . . . . . . . 1 . . 4 Average Slot Usage (%) 94 | . 100 100 100 100 90 92 87 88 98 97 Engine 8 | . 14 14 14 14 9 8 7 7 7 6 Wheel 19 | . 15 28 28 28 18 17 19 14 21 21 Device 8 | . 14 14 14 14 9 13 16 6 . 7 Storage 8 | . 14 14 14 14 9 9 7 7 7 7 Processor 5 | . . . . . . . 1 9 14 7 Hackware 4 | . . . . . . . 3 7 9 5 Protection 4 | . . . . . 11 7 . 2 4 7 Energy Gun 4 | . 15 27 28 28 4 . . . . . Impact Weapon 12 | . . . . . 27 32 . 3 13 19 Slashing Weapon 12 | . . . . . . 3 29 24 15 10 Peak Build Rating 60 | 7 9 9 11 15 40 45 59 60 59 48 Average Rating 39 | 5 7 8 10 12 32 40 50 50 49 45 On Entrance 25 | . 7 8 9 11 15 40 43 57 48 47 Avg Prop Armor Cover (%) 11 | 14 12 . . . . . . . 8 . Naked Turns . | . . . . . . . . . . . Heaviest Build 132 | 13 90 91 91 91 122 122 113 113 123 132 Greatest Support 38 | 16 26 26 26 26 26 26 38 38 32 32 Greatest Overweight (x) 11 | 1 8 3 3 3 4 5 3 11 10 11 Average Overweight (x) 3 | . 1 3 3 3 3 3 2 4 3 3 Largest Inventory Capacity 25 | 8 25 25 25 25 25 25 25 25 25 25 Average Capacity 24 | 7 14 25 25 25 25 25 25 25 25 25 Most Carried 25 | 5 11 11 14 25 25 25 25 25 25 24 Average Carried 22 | 2 9 11 13 16 23 24 24 24 24 22 Final Capacity 25 | 8 25 25 25 25 25 25 25 25 25 25 Final Carried 25 | 5 11 11 14 25 25 25 25 25 23 20 Class Distribution -------------------- 39% | Bothacker-Gladiator 29% | Gladiator 26% | Mutant Dominant Class ---------------- Mutant | -10/Materials Mutant | -10/Mines Mutant | -10/Exiles Mutant | -9/Mines Mutant | -8/Materials Gladiator | -8/Garrison Bothacker-Gladiator | -7/Factory Bothacker-Gladiator | -7/Garrison Gladiator | -7/Factory Bothacker-Gladiator | -7/Garrison Resources | -11 -10 -10 -10 -9 -8 -8 -7 -7 -7 -7 ----------- Run | Yrd Mat Min Exi Min Mat Gar Fac Gar Fac Gar Matter Collected 1979 | 218 216 . . 30 243 136 184 330 476 146 Remotely 10 | . . . . . . . . . 10 . Salvage Created 6644 | 11 418 51 . . 839 726 1138 1277 1656 528 Parts 301 | 3 28 4 . . 28 15 50 42 106 25 Haulers Intercepted 6 | . 2 . . . 1 . 1 . 2 . Recyclers Shooed 3 | 1 . . . . . . 1 . 1 . Parts Field Recycled . | . . . . . . . . . . . Retrieved Matter . | . . . . . . . . . . . Parts Self-Destructed . | . . . . . . . . . . . Prevented . | . . . . . . . . . . . Parts Restored . | . . . . . . . . . . . Kills | -11 -10 -10 -10 -9 -8 -8 -7 -7 -7 -7 ------- Run | Yrd Mat Min Exi Min Mat Gar Fac Gar Fac Gar Combat Hostiles Destroyed 108 | . 8 3 . . 20 17 8 14 24 14 Melee 77 | . . . . . 14 9 8 14 22 10 Guns 12 | . 8 3 . . 1 . . . . . Cannons 1 | . . . . . . . . . . 1 Classes Destroyed 15 | 1 5 . . . 2 4 2 . 1 . Worker 18 | . 1 . . . 2 . 7 . 8 . Builder 7 | . . . . . . . . . 7 . Tunneler 2 | 1 . . . . . . . . 1 . Hauler 6 | . 2 . . . 1 . 1 . 2 . Recycler 10 | . . . . . . . 7 . 3 . Operator 2 | . . . . . . . 2 . . . Watcher 5 | . 1 . . . 2 . . . 2 . Swarmer 30 | . 3 3 . . 6 2 . 2 7 7 Grunt 34 | . 5 . . . 7 5 5 1 10 1 Brawler 2 | . . . . . . 1 . . . 1 Duelist 4 | . . . . . . 1 . 2 . 1 Sentry 20 | . . . . . 6 5 1 5 1 2 Specialist 1 | . . . . . . 1 . . . . Hunter 5 | . . . . . 1 1 1 . 1 1 Programmer 13 | . . . . . . 1 1 5 5 1 Best Kill Streak 16 | 1 3 3 . . 7 7 16 3 6 3 Combat Bots Only 7 | . 3 3 . . 4 7 3 3 5 3 Max Kills in Single Turn 2 | 1 1 1 . . 2 1 1 1 1 1 Gunslinging . | . . . . . . . . . . . Exploded . | . . . . . . . . . . . Melee 2 | . . . . . 2 1 1 1 1 1 Uniques/NPCs Destroyed . | . . . . . . . . . . . Combat | -11 -10 -10 -10 -9 -8 -8 -7 -7 -7 -7 -------- Run | Yrd Mat Min Exi Min Mat Gar Fac Gar Fac Gar Hostile Shots Fired 734 | . 44 16 . 7 97 88 69 160 105 148 Missed 223 | . 13 5 . 1 27 22 23 56 31 45 Hits 511 | . 31 11 . 6 70 66 46 104 74 103 Melee 13 | . . . . . . 3 1 . . 9 Projectile 498 | . 31 11 . 6 70 63 45 104 74 94 Critical Strikes 13 | . 1 . . . 1 1 1 2 1 6 Part Disruptions 1 | . . . . . . . . 1 . . Damage Taken 6060 | . 306 81 . 93 732 948 493 1063 1014 1330 Core 1121 | . 91 13 . 23 96 197 92 175 231 203 Absorbed by Shields 524 | . . . . . 144 44 72 264 . . Ignored by Resistances 326 | . . . . . . . . . 91 235 Regen/Repaired (Parts) 99 | . . . . . . . . . 99 . Core Remaining (%) 65 | 100 . . . 49 . 46 . . . . Volleys Fired 79 | 3 45 5 . 3 7 . . 16 . . Largest 3 | 2 2 2 . 2 3 . . 1 . . Hottest 138 | 40 105 90 . 115 138 . . 5 . . Shots Fired 138 | 6 86 10 . 5 15 . . 16 . . Gun 119 | 6 86 10 . 5 12 . . . . . Cannon 3 | . . . . . 3 . . . . . Launcher . | . . . . . . . . . . . Special 16 | . . . . . . . . 16 . . Kinetic 61 | 6 48 . . . 7 . . . . . Thermal 32 | . 14 5 . 5 8 . . . . . Explosive . | . . . . . . . . . . . Electromagnetic 29 | . 24 5 . . . . . . . . Robot Hit Streak 19 | 2 10 1 . 1 6 . . 19 . . Robot Miss Streak 6 | 2 6 4 . 3 1 . . 2 . . Penetration Max . | . . . . . . . . . . . Secondary Targets 4 | . 2 2 . . . . . . . . Max Gunslinging Chain 1 | . 1 1 . . . . . . . . Shots Hit Robots 463 | 3 49 3 . 1 70 61 59 87 85 45 Core Hits 143 | 2 25 3 . . 13 9 17 30 31 13 Critical Kills 2 | . . . . . . 2 . . . . Critical Parts Destroyed 22 | . . . . . 9 6 . . 4 3 Critical Strikes 59 | . 1 . . 1 9 10 9 13 10 6 Burn 2 | . 1 . . 1 . . . . . . Destroy 1 | . . . . . 1 . . . . . Smash 25 | . . . . . 8 10 . . 4 3 Sever 31 | . . . . . . . 9 13 6 3 Melee Attacks 628 | . . . . . 86 117 95 112 140 78 Impact 279 | . . . . . 86 115 . 3 29 46 Slashing 349 | . . . . . . 2 95 109 111 32 Piercing . | . . . . . . . . . . . Sneak Attacks 64 | . . . . . 3 8 18 1 34 . Combat Hostiles 9 | . . . . . . 6 . . 3 . Follow-up Attacks 155 | . . . . . 23 31 22 30 23 26 Damage Inflicted 19702 | 24 564 35 . 12 2449 2717 3207 3842 5113 1739 Guns 781 | 24 564 35 . 12 146 . . . . . Cannons 24 | . . . . . 24 . . . . . Explosions . | . . . . . . . . . . . Melee 18897 | . . . . . 2279 2717 3207 3842 5113 1739 Ramming . | . . . . . . . . . . . Kinetic 280 | 24 199 . . . 57 . . . . . Thermal 250 | . 125 . . 12 113 . . . . . Explosive . | . . . . . . . . . . . Electromagnetic 275 | . 240 35 . . . . . . . . Impact 7032 | . . . . . 2279 2717 . 131 932 973 Slashing 11865 | . . . . . . . 3207 3711 4181 766 Piercing . | . . . . . . . . . . . Highest Corruption 17 | . . . . . 3 4 1 9 12 17 Average Corruption 6 | . . . . . 2 3 1 3 10 12 Corruption Purged . | . . . . . . . . . . . Corruption Blocked . | . . . . . . . . . . . Effects 204 | . . . . . 17 22 1 31 100 33 Message Errors 47 | . . . . . 6 6 . 8 19 8 Matter Fused 55 | . . . . . 7 4 1 5 28 10 Heat Flow Errors 23 | . . . . . 1 2 . 4 14 2 Energy Discharges 40 | . . . . . . 5 . 8 19 8 Parts Rejected 3 | . . . . . . . . . 2 1 Parts Fused 1 | . . . . . . 1 . . . . Data Loss (minor) 22 | . . . . . 3 1 . 6 11 1 Data Loss (major) 7 | . . . . . . . . . 5 2 Alerts 6 | . . . . . . 3 . . 2 1 Overload Shots . | . . . . . . . . . . . Overflow Damage 3161 | . . . . . 610 486 542 57 1232 234 Projectiles . | . . . . . . . . . . . Explosions . | . . . . . . . . . . . Melee 3161 | . . . . . 610 486 542 57 1232 234 Knockbacks 14 | . . . . . 3 5 . . 1 5 Impact 13 | . . . . . 3 5 . . 1 4 Kinetic . | . . . . . . . . . . . Secondary 1 | . . . . . . . . . . 1 Self-Inflicted Damage . | . . . . . . . . . . . Shots . | . . . . . . . . . . . Rammed . | . . . . . . . . . . . Targets Rammed . | . . . . . . . . . . . Kicked . | . . . . . . . . . . . Crushed . | . . . . . . . . . . . Highest Temperature 300 | . 171 150 . 54 300 175 . 264 267 156 Average Temperature 88 | . 66 76 . 27 126 80 . 109 98 71 Received Heat Transfer 911 | . 63 . . . 231 162 150 107 153 45 Siege Activations . | . . . . . . . . . . . Martial Activations . | . . . . . . . . . . . Shielding Activations . | . . . . . . . . . . . Robots Disrupted . | . . . . . . . . . . . Combat Hostiles . | . . . . . . . . . . . Robots Corrupted 21 | . . . . . 7 8 . . 3 3 Combat Hostiles 18 | . . . . . 5 8 . . 2 3 Parts Fried 28 | . 1 . . . 14 9 . . 4 . Impact Corruptions 68 | . . . . . 26 23 . 1 10 8 Robots Melted . | . . . . . . . . . . . Combat Hostiles . | . . . . . . . . . . . Parts Melted 1 | . 1 . . . . . . . . . Heat Transferred 791 | . 384 . . 111 296 . . . . . Parts Sabotaged . | . . . . . . . . . . . Parts Stolen . | . . . . . . . . . . . Parts Stripped . | . . . . . . . . . . . Power Chain Reactions . | . . . . . . . . . . . Alert | -11 -10 -10 -10 -9 -8 -8 -7 -7 -7 -7 ------- Run | Yrd Mat Min Exi Min Mat Gar Fac Gar Fac Gar Maximum Alert Level 5 | . . . . . 1 3 2 5 3 4 Low Security (%) 25 | 100 100 100 . 100 88 . . . . . Level 1 15 | . . . . . 11 40 84 6 . . Level 2 17 | . . . . . . 34 15 18 32 4 Level 3 32 | . . . . . . 24 . 23 67 94 Level 4 8 | . . . . . . . . 49 . . Level 5 . | . . . . . . . . 2 . . High Security . | . . . . . . . . . . . Max Security . | . . . . . . . . . . . Peak Influence 1683 | 5 82 70 . 58 366 854 448 1683 1007 1131 Initial 883 | . . . . . . 235 448 266 883 698 Average 565 | . 30 25 . 6 84 511 328 1092 741 933 Influence Increases 5257 | 5 243 70 . 58 697 709 375 1677 860 563 Destroy 0b10 Robot/C 2720 | . 160 60 . 40 440 340 160 700 480 340 Destroy 0b10 Robot/NC 280 | 5 20 . . . 25 . 85 30 115 . Destroy Leader 472 | . 46 10 . 10 136 20 52 30 128 40 Allied During Kill 231 | . . . . 8 8 . . 203 . 12 Successful Hack 137 | . 17 . . . 22 28 42 14 14 . Disable Machine 45 | . . . . . 15 . . . 30 . Anti-Garrison Action 800 | . . . . . . 150 . 550 . 100 Destroy Structure 272 | . . . . . 6 96 6 135 18 11 Partial Spotted 45 | . . . . . . . 15 . 30 . Lose Combat Pursuer 255 | . . . . . 45 75 15 15 45 60 Influence Decreases 4126 | 5 243 70 . 58 334 218 848 375 1545 430 Entered New Map 1749 | . . . . . . 128 406 115 800 300 Time Decay 1799 | 5 243 70 . 58 306 . 422 . 695 . Lost Part 320 | . . . . . . 80 20 80 50 90 Lost Ally 258 | . . . . . 28 10 . 180 . 40 Squads Dispatched 20 | . 1 . . 1 3 . 4 . 11 . Investigation 3 | . 1 . . 1 . . . . 1 . Extermination 7 | . . . . . . . 1 . 6 . Reinforcement 4 | . . . . . 1 . 1 . 2 . Assault 2 | . . . . . . . . . 2 . Garrison 4 | . . . . . 2 . 2 . . . Intercept . | . . . . . . . . . . . Searches Triggered . | . . . . . . . . . . . Construction Impeded . | . . . . . . . . . . . Haulers Reinforced 1 | . . . . . . . . . 1 . Active Scanning Responses . | . . . . . . . . . . . Cargo Convoy Interrupts . | . . . . . . . . . . . Stealth | -11 -10 -10 -10 -9 -8 -8 -7 -7 -7 -7 --------- Run | Yrd Mat Min Exi Min Mat Gar Fac Gar Fac Gar Distress Signals 4 | . . . . . 1 . . 1 2 . Communications Jammed . | . . . . . . . . . . . Distress Signals . | . . . . . . . . . . . Times Spotted 185 | . 11 3 . 3 32 18 15 39 40 24 Peak Tracking Total 8 | . 4 3 . 2 8 7 5 5 6 8 Tactical Retreats 14 | . . . . . 2 4 1 1 3 3 Traps | -11 -10 -10 -10 -9 -8 -8 -7 -7 -7 -7 ------- Run | Yrd Mat Min Exi Min Mat Gar Fac Gar Fac Gar Traps Triggered 23 | . 2 . . . 3 4 . 9 2 3 Indirectly . | . . . . . . . . . . . Trap Hack Attempts . | . . . . . . . . . . . Triggered . | . . . . . . . . . . . Disarmed 4 | . . . . . 4 . . . . . Reprogrammed . | . . . . . . . . . . . Reused . | . . . . . . . . . . . Traps Extracted . | . . . . . . . . . . . Installed . | . . . . . . . . . . . Triggered . | . . . . . . . . . . . Machines | -11 -10 -10 -10 -9 -8 -8 -7 -7 -7 -7 ---------- Run | Yrd Mat Min Exi Min Mat Gar Fac Gar Fac Gar Machines Disabled 11 | . . . . . 1 1 . 5 2 2 Max in Single Turn 1 | . . . . . 1 1 . 1 1 1 Garrison Relay 8 | . . . . . . 1 . 5 . 2 Machines Repaired . | . . . . . . . . . . . Machines Dismantled . | . . . . . . . . . . . Machines Sabotaged . | . . . . . . . . . . . Overloaded Fab Kills . | . . . . . . . . . . . Hacking | -11 -10 -10 -10 -9 -8 -8 -7 -7 -7 -7 --------- Run | Yrd Mat Min Exi Min Mat Gar Fac Gar Fac Gar Machines Accessed 43 | . 8 . 1 1 7 2 9 3 11 1 Terminals 25 | . 6 . . . 4 2 5 3 4 1 Fabricators . | . . . . . . . . . . . Repair Stations 5 | . . . . . . . . . 5 . Recycling Units 4 | . 2 . . . 1 . 1 . . . Scanalyzers 4 | . . . . . 1 . 2 . 1 . Garrison Access 3 | . . . . . 1 . 1 . 1 . Total Hacks 84 | . 13 . 1 1 16 2 20 8 22 1 Successful 39 | . 6 . 1 1 11 2 9 1 7 1 Failed 43 | . 7 . . . 4 . 10 7 15 . Catastrophic 11 | . 3 . . . . . 1 3 4 . Database Lockouts 2 | . . . . . 1 . 1 . . . Manual 30 | . 9 . 1 . 5 . 9 . 6 . Terminals 47 | . 9 . . . 11 2 10 8 6 1 Fabricators . | . . . . . . . . . . . Repair Stations 14 | . . . . . . . . . 14 . Recycling Units 8 | . 4 . . . 2 . 2 . . . Scanalyzers 10 | . . . . . 2 . 7 . 1 . Garrison Access 3 | . . . . . 1 . 1 . 1 . Terminal Hacks 11 | . . . 1 1 4 2 1 1 . 1 Robot Analysis 1 | . . . . . 1 . . . . . Open Door 2 | . . . . 1 . . . . . 1 Emergency Access Points 2 | . . . . . . 1 . 1 . . Scanalyzer Index 1 | . . . . . . . 1 . . . Locate Traps 1 | . . . . . 1 . . . . . Disarm Traps 1 | . . . . . 1 . . . . . Hauler Manifests 1 | . . . . . 1 . . . . . Patrol Navigation 1 | . . . . . . 1 . . . . Proto ID Catalog 1 | . . . 1 . . . . . . . Fabricator Hacks . | . . . . . . . . . . . Repair Station Hacks 6 | . . . . . . . . . 6 . Scan Component 5 | . . . . . . . . . 5 . Repair 1 | . . . . . . . . . 1 . Recycling Unit Hacks 4 | . 2 . . . 1 . 1 . . . Retrieve Components 4 | . 2 . . . 1 . 1 . . . Scanalyzer 3 | . . . . . 1 . 2 . . . Insert Component 1 | . . . . . . . 1 . . . Retrieve Study 2 | . . . . . 1 . 1 . . . Garrison Access Hacks 3 | . . . . . 1 . 1 . 1 . Unlock Access 3 | . . . . . 1 . 1 . 1 . Unauthorized Hacks 12 | . 4 . . . 4 . 4 . . . Terminals 12 | . 4 . . . 4 . 4 . . . Assimilate 2 | . . . . . 1 . 1 . . . Botnet 9 | . 4 . . . 3 . 2 . . . Operators 1 | . . . . . . . 1 . . . Fabricators . | . . . . . . . . . . . Repair Stations . | . . . . . . . . . . . Recycling Units . | . . . . . . . . . . . Scanalyzers . | . . . . . . . . . . . Garrison Access . | . . . . . . . . . . . Data Cores Recovered 1 | . . . . . . . 1 . . . Used 1 | . . . . . . . 1 . . . Hacking Detections 27 | . 5 . . . 2 . 7 3 10 . Full Trace Events 4 | . 1 . . . . . . 2 1 . Feedback Events . | . . . . . . . . . . . Feedback Blocked . | . . . . . . . . . . . Robot Schematics Acquired . | . . . . . . . . . . . Robots Built . | . . . . . . . . . . . Authchips . | . . . . . . . . . . . Time . | . . . . . . . . . . . Total Robot Build Rating . | . . . . . . . . . . . Part Schematics Acquired . | . . . . . . . . . . . Parts Built . | . . . . . . . . . . . Authchips . | . . . . . . . . . . . Time . | . . . . . . . . . . . Total Part Build Rating . | . . . . . . . . . . . Part Studies Acquired 2 | . . . . . 1 . 1 . . . Parts Repaired 1 | . . . . . . . . . 1 . Time 38 | . . . . . . . . . 38 . Parts Recycled . | . . . . . . . . . . . Recycled Matter . | . . . . . . . . . . . Retrieved Matter . | . . . . . . . . . . . Retrieved Components 17 | . 6 . . . 9 . 2 . . . Parts Scanalyzed . | . . . . . . . . . . . Part Schematics Acquired . | . . . . . . . . . . . Parts Damaged . | . . . . . . . . . . . Bothacking | -11 -10 -10 -10 -9 -8 -8 -7 -7 -7 -7 ------------ Run | Yrd Mat Min Exi Min Mat Gar Fac Gar Fac Gar Used RIF Installer 3 | . . . . . . 1 . 1 . 1 Signal Jammer 1 | . . . . . . . . . . 1 Robot Detection 1 | . . . . . . . . 1 . . Robots Hacked 3 | . . . . . . . . 3 . . Non-combat . | . . . . . . . . . . . Combat 3 | . . . . . . . . 3 . . Robot Hacks Applied 3 | . . . . . . . . 3 . . parse_system 1 | . . . . . . . . 1 . . disrupt_area 1 | . . . . . . . . 1 . . amplify_resonance 1 | . . . . . . . . 1 . . Relay Couplers Released 35 | . . . . . . 7 . 21 . 7 Machine Destruction 31 | . . . . . . 3 . 21 . 7 Programmers 4 | . . . . . . 4 . . . . Attached 4 | . . . . . . . . 3 1 . Fabnet Peak Effective % . | . . . . . . . . . . . Robots Rewired 6 | . . . . . . . . 6 . . Allies Hacked 1 | . . . . . . . . 1 . . Hacks Repelled . | . . . . . . . . . . . Allies | -11 -10 -10 -10 -9 -8 -8 -7 -7 -7 -7 -------- Run | Yrd Mat Min Exi Min Mat Gar Fac Gar Fac Gar Total Allies 16 | . . 3 . . 1 . . 10 . 2 Largest Group 6 | . . 3 3 3 3 1 . 6 . 2 Highest-Rated Group 237 | . . 40 40 40 40 10 . 237 . 40 Highest-Rated Ally 95 | . . 16 16 16 16 10 . 95 . 20 Total Orders . | . . . . . . . . . . . Ally Attacks 137 | . . . . 18 16 . . 99 . 4 Total Damage 3238 | . . . . 167 162 . . 2715 . 194 Kills 30 | . . . . 3 2 . . 22 . 3 Allies Corrupted . | . . . . . . . . . . . Allies Melted . | . . . . . . . . . . . Intel | -11 -10 -10 -10 -9 -8 -8 -7 -7 -7 -7 ------- Run | Yrd Mat Min Exi Min Mat Gar Fac Gar Fac Gar Active Infowar (turns) 2075 | 41 742 194 354 544 199 . . . 1 . Seismic 2074 | 41 742 194 354 544 199 . . . . . T.N.C. 1 | . . . . . . . . . 1 . Robot Analysis Total 1 | . . . . . 1 . . . . . Derelict Logs Recovered 2 | . . 1 . 1 . . . . . . Drone Launches . | . . . . . . . . . . . Drone Recoveries . | . . . . . . . . . . . Exploration | -11 -10 -10 -10 -9 -8 -8 -7 -7 -7 -7 ------------- Run | Yrd Mat Min Exi Min Mat Gar Fac Gar Fac Gar Turns Passed 11298 | 76 742 194 354 544 1365 1338 1026 1844 2894 921 Spaces Moved 6828 | 57 532 131 259 376 732 730 640 1023 1807 541 Core 2 | 1 1 . . . . . . . . . Treads 2 | . 2 . . . . . . . . . Legs . | . . . . . . . . . . . Wheels 6824 | 56 529 131 259 376 732 730 640 1023 1807 541 Hover . | . . . . . . . . . . . Flight . | . . . . . . . . . . . Fastest Speed 50 | 50 95 135 135 135 130 130 115 115 115 115 Average Speed 131 | 93 111 135 135 135 142 144 121 148 126 118 Slowest Speed 480 | 100 480 135 135 135 145 145 145 235 220 235 Overloaded Moves . | . . . . . . . . . . . Propulsion Burnouts . | . . . . . . . . . . . Robots Hopped . | . . . . . . . . . . . Potential Cave-ins . | . . . . . . . . . . . Cave-ins Triggered . | . . . . . . . . . . . Exploration Rate (%) 51 | 4 89 28 69 75 53 73 16 84 43 32 Regions Visited 10 Branch Regions 3 Pre-discovered Areas . | . . . . . . . . . . . Known Exits Taken 4 | . . . 1 . 1 . 1 . 1 . Unknown Exits Taken 4 | 1 1 1 . 1 . . . . . . Scrap Searched 2 | . . . . 2 . . . . . . Spaces Dug 34 | . . . . . 8 1 6 . 18 1 Terrain Destroyed 35 | . . . . . 9 1 6 . 18 1 Melee 30 | . . . . . 4 1 6 . 18 1 Projectile 5 | . . . . . 5 . . . . . AOE . | . . . . . . . . . . . Terrain Rammed . | . . . . . . . . . . . Walls Destroyed . | . . . . . . . . . . . Machines Disabled . | . . . . . . . . . . . Actions | -11 -10 -10 -10 -9 -8 -8 -7 -7 -7 -7 --------- Run | Yrd Mat Min Exi Min Mat Gar Fac Gar Fac Gar Total 8379 | 71 602 137 263 409 944 896 821 1226 2273 737 Wait 700 | . 2 . 2 10 108 61 85 10 299 123 Move 6820 | 56 531 130 258 375 732 729 640 1021 1807 541 Hop . | . . . . . . . . . . . Pick Up 99 | 4 7 . 3 16 10 9 15 13 17 5 Fast Attach 35 | 7 3 . . . 5 4 3 1 11 1 Attach 41 | . . . . 2 3 7 3 10 8 8 Detach 15 | . 1 . . . 4 2 . 4 4 . Swap 58 | 1 7 2 . . 8 6 8 12 14 . Drop 70 | . 6 . . 3 15 5 14 5 22 . Fire 79 | 3 45 5 . 3 7 . . 16 . . Melee 374 | . . . . . 52 65 53 70 91 43 Ram . | . . . . . . . . . . . Kick . | . . . . . . . . . . . Crush . | . . . . . . . . . . . Escape Stasis 88 | . . . . . . 8 . 64 . 16 Rewire . | . . . . . . . . . . . Trap . | . . . . . . . . . . . Miscellaneous . | . . . . . . . . . . . Route ------- -11/Scrapyard -10/Materials (discovered 4 exits: [*Mat x3] / [*Min]) -10/Mines (discovered 2 exits: [*Mat] / *Exi) -10/Exiles (discovered 2 exits: *Min x2) -9/Mines -8/Materials (discovered 3 exits: Fac / [*Sto] / Gar) -8/Garrison (discovered 3 exits: *Fac x3) -7/Factory -7/Garrison (discovered 3 exits: *Fac x3) -7/Factory (discovered 2 exits: [*Low] / Gar) -7/Garrison History --------- Turn | Location | Event 22 | -11/Scrapyard | Discovered new exit (range 15) 77 | -11/Scrapyard | Entered Materials 148 | -10/Materials | Discovered new exit (range 12) 215 | -10/Materials | Discovered new exit (range 14) 301 | -10/Materials | Build established: Mutant 477 | -10/Materials | Discovered new exit (range 9) 573 | -10/Materials | Discovered new exit (range 8) 819 | -10/Materials | Entered Mines 895 | -10/Mines | Assisted by bots powering up and referring to "LRC-V3" 945 | -10/Mines | Discovered new exit (range 9) 1006 | -10/Mines | Deemed a non-threat by the Exiles lab entrance 1006 | -10/Mines | Discovered new exit (range 5) 1013 | -10/Mines | Entered Exiles 1013 | -10/Exiles | Accompanied by 3 allies 1014 | -10/Exiles | Identified exit to Mines 1051 | -10/Exiles | Met 8R-AWN 1071 | -10/Exiles | Met EX-HEX 1110 | -10/Exiles | Met EX-BIN 1130 | -10/Exiles | Aligned with FarCom system 1132 | -10/Exiles | Given EX-Vault access code 1163 | -10/Exiles | Opened EX-Vault 1172 | -10/Exiles | Found Field Lobotomy Kit 1199 | -10/Exiles | Warned to stay clear of 0b10 Research branches 1237 | -10/Exiles | Met EX-DEC 1367 | -10/Exiles | Left Exiles lab with Field Lobotomy Kit 1367 | -10/Exiles | Entered Mines 1367 | -9/Mines | Accompanied by 3 allies 1368 | -9/Mines | Assembled infested the area 1373 | -9/Mines | Assisted by a Guerilla fighting off Assembled 1439 | -9/Mines | Core integrity fell below 50% 1641 | -9/Mines | Learned 2 Materials zone layouts 1653 | -9/Mines | Met a Derelict shopkeep closing up shop 1801 | -9/Mines | A weapon hastily lodged in a ceiling crevice suddenly fell to the ground 1825 | -9/Mines | Found DCF Scrap (11 items) 1874 | -9/Mines | Discovered new exit (range 4) 1911 | -9/Mines | Entered Materials 1911 | -8/Materials | Accompanied by 3 allies 1911 | -8/Materials | Evolved 4 slots: Utility x2, Weapon x2 1912 | -8/Materials | Identified exit to Factory 1979 | -8/Materials | Central database locked down 2147 | -8/Materials | Lost 3 allies 2620 | -8/Materials | Discovered new exit (range 6) 3053 | -8/Materials | Build established: Gladiator 3086 | -8/Materials | Garrison activated, responded to threat 3276 | -8/Materials | Identified exit to Garrison 3276 | -8/Materials | Entered Garrison 3276 | -8/Garrison | Accompanied by 1 ally 3416 | -8/Garrison | Triggered checkpoint 3430 | -8/Garrison | Installed Relay Interface Framework 3546 | -8/Garrison | Triggered checkpoint 3606 | -8/Garrison | Discovered exit to Factory (range 15) 3832 | -8/Garrison | Garrison Relay disabled 3876 | -8/Garrison | Triggered checkpoint 3967 | -8/Garrison | Discovered exit to Factory (range 15) 4320 | -8/Garrison | Core integrity fell below 50% 4345 | -8/Garrison | Destroyed 7 combat bots 4353 | -8/Garrison | Lost 5 parts (1p3n1u) 4421 | -8/Garrison | Discovered exit to Factory (range 13) 4585 | -8/Garrison | Build established: Bothacker-Gladiator 4614 | -8/Garrison | Entered Factory 4614 | -7/Factory | Evolved 2 slots: Propulsion x1, Utility x1 5349 | -7/Factory | Central database locked down 5536 | -7/Factory | Garrison activated, responded to threat 5640 | -7/Factory | Identified exit to Garrison 5640 | -7/Factory | Entered Garrison 5692 | -7/Garrison | Expanded RIF knowledge: Robot Detection 5752 | -7/Garrison | Triggered checkpoint 5792 | -7/Garrison | Triggered checkpoint 5829 | -7/Garrison | Found embedded Infiltrators 5829 | -7/Garrison | Discovered new exit (range 12) 6016 | -7/Garrison | Triggered checkpoint 6144 | -7/Garrison | Garrison Relay disabled 6177 | -7/Garrison | Rescued a captive Derelict 6181 | -7/Garrison | Rescued a captive Derelict 6323 | -7/Garrison | Discovered new exit (range 12) 6467 | -7/Garrison | Garrison Relay disabled 6490 | -7/Garrison | Triggered checkpoint 6549 | -7/Garrison | Discovered new exit (range 12) 6684 | -7/Garrison | Triggered checkpoint 6691 | -7/Garrison | Garrison Relay disabled 6724 | -7/Garrison | Triggered checkpoint 6800 | -7/Garrison | Garrison Relay disabled 6890 | -7/Garrison | Lost 6 parts (3n2u1w) 7204 | -7/Garrison | Garrison Relay disabled 7484 | -7/Garrison | Entered Factory 7749 | -7/Factory | Discovered new exit (range 16) 8064 | -7/Factory | System corruption reached 10% 8649 | -7/Factory | Build established: Gladiator 9035 | -7/Factory | Repaired Actuator Array 9671 | -7/Factory | Core integrity fell below 50% 9884 | -7/Factory | First assault squad dispatched 10378 | -7/Factory | Identified exit to Garrison 10378 | -7/Factory | Entered Garrison 10617 | -7/Garrison | Expanded RIF knowledge: Signal Jamming 10649 | -7/Garrison | Core integrity fell below 20% 10669 | -7/Garrison | Rescued a captive Derelict 10676 | -7/Garrison | Rescued a captive Derelict 10756 | -7/Garrison | Triggered checkpoint 10793 | -7/Garrison | Garrison Relay disabled 10796 | -7/Garrison | Triggered checkpoint 11108 | -7/Garrison | Build established: Bothacker-Gladiator 11144 | -7/Garrison | Triggered checkpoint 11188 | -7/Garrison | Garrison Relay disabled 11204 | -7/Garrison | Lost 4 parts (1p1n2u) 11276 | -7/Garrison | Triggered checkpoint 11280 | -7/Garrison | Triggered checkpoint 11299 | -7/Garrison | Destroyed by S-27 Virus with Autogun Last Messages --------------- 11188_ Relay Coupler [Sentry] tumbles out of relay unit. 11188_ Relay Coupler [NC] tumbles out of relay unit. 11226_ &HO%4 S5EEI,&CZG&9% 11282_ System corrupted: Energy discharge (-65). 11283_ S-27 Virus knocked back. 11287_ Wheel+ destroyed. 11289_ Ripper follow-up attack on S-27 Virus. 11289_ Powered Hammer follow-up attack on S-27 Virus. 11289_ Destroyed VTOL Module. 11289_ S-27 Virus system corrupted by crushing effect. 11289_ S-27 Virus knocked back. 11289_ S-27 Virus destroyed. 11290_ S-27 Virus system terminally corrupted. 11294_ Powered Hammer follow-up attack on S-27 Virus. 11294_ Destroyed VTOL Module. 11294_ S-27 Virus system corrupted by crushing effect. 11294_ S-27 Virus destroyed. Map ----- +----------------------------------------------------+ | ?????????????????????????????????????????????????? | | ?????????????????????????????????????????????????? | | ?????????????????????????????????????????????????? | | ?????????????????????????????????????????????????? | | ?????????????????????????????????????????????????? | | ?????????????????????????????????????????????????? | | ?????????????????????????????????????????????????? | | ?????????????????????????????????????????????????? | | ?????????????????????????????????????????????????? | | ?????????????????????????????????????????????????? | | ?????????????????????????????????????????????????? | | ?????????????????????????????????????????????????? | | ?????????????????????????????????????????????????? | | ?????????????????????????????????????????????????? | | ?????????????????????????????????????????????????? | | ?????????????????????????????????????????????????? | | ????????????????????????????????ssss?????????????? | | ??????????????????????????######""""## ??????????? | | ?????????????????????????? ?????????? | | ?????????????????????????? ??????????? | | ?????????????????????????? ? ???????????? | | ??????????????????????????# #? #?? ????????? | | ????????????????????????### ## ## ????????? | | ????????????????????????#%=s "???????? | | ????????????????????????#** "g??????? | | ????????????????????????#@% = "???????? | | ?????????#######????????#s[%s "g??????? | | ?????????#"""" #????????### s ## ##?? #???????? | | ?????????## !!############# ## ## ##??????? | | ?????????# !!% ??????? | | ?????????# ??????? | | ?????????####### ######## #???????? | | ???????????????# #??????## ## ######???????? | | ???????????????#####???????# #? #????????????? | | ???????????????????????????# #??####????????????? | | ???????????????????????????# #??????????????????? | | ???????????????????????????# #??????????????????? | | ???????????????????????????# #??????????????????? | | ???????????????????????????# #??????????????????? | | ??????###################### #??????????????????? | | ??????# = ^#??????????????????? | | ??????#*! ! ^#??????????????????? | | ??????#[ ###################"##??????????????????? | | ??????#%[#?????????????????# #??????????????????? | | ??????# #?????????????????# #??????????????????? | | ??????# #?????????????????# #??????????????????? | | ??????# #?????????????????# #??????????????????? | | ??????# #?????????????????# #??????????????????? | | ??????# #?????????????????# #??????????????????? | | ??????# #?????????????????# #??????????????????? | +----------------------------------------------------+ Best States ------------- Heat Dissipation 48 Energy Generation 18 Energy Capacity 310 Matter Stores 300 Matter Capacity 300 Sight Range 16 Terrain Scan Density 10 Armor Coverage 600 Resistance: KI 30 Melee Speed Boost 20 Evasion (%) 45 Melee Accuracy 12 Recoil Reduction 1 Offensive Hacking 10 Relay Coupler Types 2 Relay Coupler Value 51 Item Schematics ----------------- None Robot Schematics ------------------ None Fabricated ------------ Nothing Repaired ---------- Actuator Array | 1% | -7/Factory Studied --------- Wheel | -8/Materials | Hacked Power Sword | -7/Factory | Hacked Alien Tech Used ----------------- None Achievements -------------- Melee Specialist Oppo Buddy Challenges ------------ None Game ------ Seed ScanIonicDerivative Manual? 0 Play Time 01:49:17 Cumulative 77.8 hours Start 2026.01.17 @ 17:46:19 End 2026.01.17 @ 21:04:54 Sessions 3 Manual Loads 0 Difficulty Rogue Special Mode None Game No. 30 Rogue 30 Adventurer 0 Explorer 0 Win Type - Total 1 Types 1/0/0/0/0/0/0/0/0/0 Lore% 43 Gallery% 48 Achievement% 38 Wizard Run 0 Options --------- Layout 0 ASCII 0 Keyboard 1 Movement Arrows Keybinds 0 Fullscreen 1 Font 18/SmallcapsGlow Map View 76x50 Zoom Use 0% Tactical HUD 1 Map Filters NONE Filters NONE Steam 1 RUN: ed8b97af-d7f6-41fe-9b55-ee1e9a38e619